[Event "Titled Tuesday Blitz April 05 Early 2022"]
[White "Iljin, Timofey"]
[Black "Terletsky, Oleg"]
[WhiteFideId "14110180"]
[BlackFideId "14116774"]
[WhiteElo "2396"]
[BlackElo "2064"]
[Result "1-0"]
[Round "11"]
[TimeControl "180+1"]
[Date "2022.04.05"]
[WhiteClock "0:00:17"]
[BlackClock "0:00:04"]

1. d4 {[%clk 0:03:00]}  Nf6 {[%clk 0:02:58]} 2. c4 {[%clk 0:03:01]}  g6 {[%clk 0:02:59]} 3. Nc3 {[%clk 0:03:01]}  Bg7 {[%clk 0:03:00]} 4. e4 {[%clk 0:03:02]}  d6 {[%clk 0:03:00]} 5. f4 {[%clk 0:03:03]}  O-O {[%clk 0:03:00]} 6. Nf3 {[%clk 0:03:04]}  c5 {[%clk 0:03:00]} 7. d5 {[%clk 0:03:04]}  e6 {[%clk 0:03:00]} 8. Be2 {[%clk 0:03:05]}  exd5 {[%clk 0:02:59]} 9. cxd5 {[%clk 0:03:06]}  Bg4 {[%clk 0:02:59]} 10. e5 {[%clk 0:03:07]}  dxe5 {[%clk 0:02:48]} 11. fxe5 {[%clk 0:03:07]}  Nfd7 {[%clk 0:02:49]} 12. Bg5 {[%clk 0:03:03]}  Qb6 {[%clk 0:02:38]} 13. O-O {[%clk 0:03:01]}  Bxf3 {[%clk 0:02:33]} 14. Bxf3 {[%clk 0:03:02]}  Nxe5 {[%clk 0:02:32]} 15. Be7 {[%clk 0:03:02]}  Re8 {[%clk 0:02:20]} 16. d6 {[%clk 0:03:02]}  Nbc6 {[%clk 0:02:01]} 17. Nd5 {[%clk 0:03:00]}  Qxb2 {[%clk 0:01:46]} 18. Nf6+ {[%clk 0:02:46]}  Kh8 {[%clk 0:01:21]} 19. Nxe8 {[%clk 0:02:43]}  Qxa1 {[%clk 0:00:47]} 20. Nxg7 {[%clk 0:01:48]}  Qxd1 {[%clk 0:00:38]} 21. Rxd1 {[%clk 0:01:04]}  Kxg7 {[%clk 0:00:23]} 22. Bxc6 {[%clk 0:00:33]}  Nxc6 {[%clk 0:00:16]} 23. d7 {[%clk 0:00:34]}  Nd8 {[%clk 0:00:09]} 24. Bxc5 {[%clk 0:00:34]}  b6 {[%clk 0:00:06]} 25. Be7 {[%clk 0:00:34]}  f6 {[%clk 0:00:06]} 26. Rc1 {[%clk 0:00:34]}  Kf7 {[%clk 0:00:05]} 27. Bxf6 {[%clk 0:00:17]}  Kxf6 {[%clk 0:00:03]} 28. Rc8 {[%clk 0:00:17]}  Ke7 {[%clk 0:00:03]} 29. Rxa8 {[%clk 0:00:18]}  Kxd7 {[%clk 0:00:03]} 30. Rxa7+ {[%clk 0:00:18]}  Kd6 {[%clk 0:00:04]} 31. Rxh7 {[%clk 0:00:19]}  Nc6 {[%clk 0:00:04]} 32. Rh6 {[%clk 0:00:17]} 1-0


[Site "https://www.chess.com"]

[Event "Titled Tuesday Blitz April 05 Early 2022"]
[White "Ilyasli, Ughur"]
[Black "Le Ruyet, Leopold"]
[WhiteFideId "13416197"]
[BlackFideId "645923"]
[WhiteElo "2045"]
[BlackElo "2276"]
[Result "1-0"]
[Round "11"]
[TimeControl "180+1"]
[Date "2022.04.05"]
[WhiteClock "0:00:09"]
[BlackClock "0:00:03"]

1. d4 {[%clk 0:03:00]}  Nf6 {[%clk 0:02:59]} 2. c4 {[%clk 0:03:01]}  g6 {[%clk 0:03:00]} 3. Nc3 {[%clk 0:03:01]}  Bg7 {[%clk 0:03:00]} 4. e4 {[%clk 0:03:02]}  O-O {[%clk 0:03:01]} 5. Nge2 {[%clk 0:03:02]}  d6 {[%clk 0:03:01]} 6. Ng3 {[%clk 0:03:02]}  e5 {[%clk 0:03:01]} 7. d5 {[%clk 0:03:02]}  a5 {[%clk 0:03:01]} 8. Be2 {[%clk 0:03:03]}  Na6 {[%clk 0:03:01]} 9. h4 {[%clk 0:03:03]}  h6 {[%clk 0:02:56]} 10. Be3 {[%clk 0:02:55]}  Nc5 {[%clk 0:02:54]} 11. Qd2 {[%clk 0:02:48]}  Kh7 {[%clk 0:02:54]} 12. h5 {[%clk 0:02:47]}  g5 {[%clk 0:02:52]} 13. f3 {[%clk 0:02:38]}  Ng8 {[%clk 0:02:50]} 14. Bd1 {[%clk 0:02:23]}  Ne7 {[%clk 0:02:48]} 15. Bc2 {[%clk 0:02:23]}  b6 {[%clk 0:02:23]} 16. O-O-O {[%clk 0:02:20]}  Ba6 {[%clk 0:02:18]} 17. b3 {[%clk 0:02:12]}  a4 {[%clk 0:02:03]} 18. Bxc5 {[%clk 0:02:00]}  bxc5 {[%clk 0:02:00]} 19. Nxa4 {[%clk 0:01:59]}  Bc8 {[%clk 0:01:50]} 20. Nc3 {[%clk 0:01:40]}  Bd7 {[%clk 0:01:47]} 21. a4 {[%clk 0:01:35]}  Qb8 {[%clk 0:01:40]} 22. Nf5 {[%clk 0:01:29]}  Bxf5 {[%clk 0:01:15]} 23. exf5 {[%clk 0:01:29]}  f6 {[%clk 0:01:11]} 24. Nb5 {[%clk 0:01:19]}  Rd8 {[%clk 0:01:08]} 25. g4 {[%clk 0:00:50]}  c6 {[%clk 0:01:05]} 26. Nc3 {[%clk 0:00:50]}  Qb4 {[%clk 0:01:00]} 27. Qd3 {[%clk 0:00:42]}  cxd5 {[%clk 0:00:53]} 28. Nxd5 {[%clk 0:00:39]}  Qa3+ {[%clk 0:00:53]} 29. Kd2 {[%clk 0:00:39]}  Nc6 {[%clk 0:00:53]} 30. Ra1 {[%clk 0:00:37]}  Qb2 {[%clk 0:00:53]} 31. Rhb1 {[%clk 0:00:37]}  Qd4 {[%clk 0:00:52]} 32. Qxd4 {[%clk 0:00:35]}  exd4 {[%clk 0:00:29]} 33. Be4 {[%clk 0:00:34]}  Ne5 {[%clk 0:00:27]} 34. a5 {[%clk 0:00:28]}  Ra7 {[%clk 0:00:25]} 35. Ra4 {[%clk 0:00:24]}  Rb8 {[%clk 0:00:24]} 36. Nb6 {[%clk 0:00:21]}  Ra6 {[%clk 0:00:20]} 37. Kc2 {[%clk 0:00:18]}  Bf8 {[%clk 0:00:17]} 38. Nd5 {[%clk 0:00:16]}  Kg7 {[%clk 0:00:15]} 39. b4 {[%clk 0:00:14]}  Nxc4 {[%clk 0:00:06]} 40. b5 {[%clk 0:00:12]}  Rxa5 {[%clk 0:00:02]} 41. Rxc4 {[%clk 0:00:11]}  Raxb5 {[%clk 0:00:02]} 42. Rxb5 {[%clk 0:00:11]}  Rxb5 {[%clk 0:00:03]} 43. Ra4 {[%clk 0:00:11]}  Rb7 {[%clk 0:00:03]} 44. Ra6 {[%clk 0:00:11]}  c4 {[%clk 0:00:03]} 45. Ra4 {[%clk 0:00:10]}  d3+ {[%clk 0:00:03]} 46. Kc3 {[%clk 0:00:10]}  Rb3+ {[%clk 0:00:03]} 47. Kxc4 {[%clk 0:00:09]}  d2 {[%clk 0:00:04]} 48. Ra1 {[%clk 0:00:10]}  Rb8 {[%clk 0:00:01]} 49. Rd1 {[%clk 0:00:10]}  Rc8+ {[%clk 0:00:01]} 50. Kd3 {[%clk 0:00:09]}  Rb8 {[%clk 0:00:01]} 51. Rxd2 {[%clk 0:00:10]}  Rb3+ {[%clk 0:00:01]} 52. Kc4 {[%clk 0:00:10]}  Ra3 {[%clk 0:00:01]} 53. Rb2 {[%clk 0:00:10]}  Ra4+ {[%clk 0:00:02]} 54. Kd3 {[%clk 0:00:10]}  Ra7 {[%clk 0:00:02]} 55. Rb8 {[%clk 0:00:09]}  Rd7 {[%clk 0:00:02]} 56. Kd4 {[%clk 0:00:08]}  Be7 {[%clk 0:00:02]} 57. Nxe7 {[%clk 0:00:08]}  Rxe7 {[%clk 0:00:03]} 58. Rb7 {[%clk 0:00:09]} 1-0


[Site "https://www.chess.com"]

[Event "Titled Tuesday Blitz April 05 Early 2022"]
[White "Iskusnyh, Sergei"]
[Black "Pesotskiy, Mikhail"]
[WhiteFideId "4120027"]
[BlackFideId "34164453"]
[WhiteElo "2492"]
[BlackElo "2010"]
[Result "0-1"]
[Round "11"]
[TimeControl "180+1"]
[Date "2022.04.05"]
[WhiteClock "0:00:01"]
[BlackClock "0:00:18"]

1. d4 {[%clk 0:03:00]}  Nf6 {[%clk 0:02:59]} 2. c4 {[%clk 0:03:00]}  e6 {[%clk 0:02:59]} 3. g3 {[%clk 0:03:01]}  Bb4+ {[%clk 0:03:00]} 4. Bd2 {[%clk 0:03:00]}  a5 {[%clk 0:03:01]} 5. Bg2 {[%clk 0:02:59]}  O-O {[%clk 0:03:01]} 6. e4 {[%clk 0:02:58]}  d6 {[%clk 0:03:01]} 7. Ne2 {[%clk 0:02:57]}  e5 {[%clk 0:03:01]} 8. O-O {[%clk 0:02:54]}  Nbd7 {[%clk 0:02:57]} 9. Nbc3 {[%clk 0:02:50]}  c6 {[%clk 0:02:56]} 10. a3 {[%clk 0:02:38]}  Bxc3 {[%clk 0:02:56]} 11. Bxc3 {[%clk 0:02:38]}  Qc7 {[%clk 0:02:39]} 12. Qc2 {[%clk 0:02:36]}  a4 {[%clk 0:02:38]} 13. Rad1 {[%clk 0:02:35]}  Re8 {[%clk 0:02:38]} 14. h3 {[%clk 0:02:30]}  b5 {[%clk 0:02:34]} 15. cxb5 {[%clk 0:02:18]}  cxb5 {[%clk 0:02:34]} 16. Qb1 {[%clk 0:02:11]}  Nb6 {[%clk 0:02:20]} 17. Bb4 {[%clk 0:02:00]}  Nc4 {[%clk 0:02:18]} 18. Nc3 {[%clk 0:01:52]}  Bd7 {[%clk 0:02:17]} 19. Rfe1 {[%clk 0:01:47]}  Bc6 {[%clk 0:02:17]} 20. Kh2 {[%clk 0:01:38]}  Qb7 {[%clk 0:02:07]} 21. d5 {[%clk 0:01:34]}  Bd7 {[%clk 0:02:07]} 22. Bf1 {[%clk 0:01:34]}  Qb6 {[%clk 0:02:05]} 23. Kg1 {[%clk 0:01:04]}  Nh5 {[%clk 0:01:50]} 24. Bxc4 {[%clk 0:00:40]}  bxc4 {[%clk 0:01:44]} 25. Kg2 {[%clk 0:00:20]}  g6 {[%clk 0:01:44]} 26. f3 {[%clk 0:00:19]}  f5 {[%clk 0:01:41]} 27. Qc2 {[%clk 0:00:18]}  Rf8 {[%clk 0:01:37]} 28. Qf2 {[%clk 0:00:18]}  Qb7 {[%clk 0:01:31]} 29. Qe2 {[%clk 0:00:16]}  Qb6 {[%clk 0:01:24]} 30. Qe3 {[%clk 0:00:16]}  Qxe3 {[%clk 0:01:21]} 31. Rxe3 {[%clk 0:00:16]}  f4 {[%clk 0:01:22]} 32. Ree1 {[%clk 0:00:10]}  Ra6 {[%clk 0:01:22]} 33. g4 {[%clk 0:00:10]}  Ng7 {[%clk 0:01:21]} 34. h4 {[%clk 0:00:09]}  Rc8 {[%clk 0:01:22]} 35. Rh1 {[%clk 0:00:09]}  Ne8 {[%clk 0:01:22]} 36. h5 {[%clk 0:00:09]}  g5 {[%clk 0:01:21]} 37. h6 {[%clk 0:00:09]}  Kf7 {[%clk 0:01:19]} 38. Rh5 {[%clk 0:00:08]}  Kf6 {[%clk 0:01:18]} 39. Ne2 {[%clk 0:00:08]}  Nc7 {[%clk 0:01:18]} 40. Rc1 {[%clk 0:00:07]}  Nb5 {[%clk 0:01:18]} 41. Kf2 {[%clk 0:00:07]}  Ra7 {[%clk 0:01:13]} 42. Bc3 {[%clk 0:00:04]}  Rb7 {[%clk 0:01:11]} 43. Bb4 {[%clk 0:00:03]}  Rbc7 {[%clk 0:01:08]} 44. Nc3 {[%clk 0:00:02]}  Nxc3 {[%clk 0:01:07]} 45. bxc3 {[%clk 0:00:02]}  Rb7 {[%clk 0:01:07]} 46. Bxd6 {[%clk 0:00:02]}  Rb2+ {[%clk 0:01:06]} 47. Kg1 {[%clk 0:00:02]}  Rb3 {[%clk 0:00:50]} 48. Bb4 {[%clk 0:00:02]}  Be8 {[%clk 0:00:51]} 49. Rh2 {[%clk 0:00:02]}  Rb8 {[%clk 0:00:51]} 50. Rd2 {[%clk 0:00:02]}  Bd7 {[%clk 0:00:52]} 51. d6 {[%clk 0:00:03]}  Rb5 {[%clk 0:00:53]} 52. Rcd1 {[%clk 0:00:02]}  Ke6 {[%clk 0:00:52]} 53. Rd5 {[%clk 0:00:02]}  Rxd5 {[%clk 0:00:52]} 54. Rxd5 {[%clk 0:00:02]}  Rb1+ {[%clk 0:00:49]} 55. Kf2 {[%clk 0:00:02]}  Rb2+ {[%clk 0:00:50]} 56. Kf1 {[%clk 0:00:02]}  Rb1+ {[%clk 0:00:50]} 57. Ke2 {[%clk 0:00:03]}  Rb2+ {[%clk 0:00:51]} 58. Ke1 {[%clk 0:00:03]}  Rb1+ {[%clk 0:00:52]} 59. Ke2 {[%clk 0:00:03]}  Rb2+ {[%clk 0:00:52]} 60. Rd2 {[%clk 0:00:03]}  Rxd2+ {[%clk 0:00:52]} 61. Kxd2 {[%clk 0:00:03]}  Kf7 {[%clk 0:00:52]} 62. Ke2 {[%clk 0:00:03]}  Ke6 {[%clk 0:00:53]} 63. Kf2 {[%clk 0:00:04]}  Kf7 {[%clk 0:00:54]} 64. Ba5 {[%clk 0:00:04]}  Ke6 {[%clk 0:00:54]} 65. Bd8 {[%clk 0:00:04]}  Kxd6 {[%clk 0:00:54]} 66. Bxg5 {[%clk 0:00:04]}  Ke6 {[%clk 0:00:55]} 67. Bh4 {[%clk 0:00:04]}  Be8 {[%clk 0:00:56]} 68. Bd8 {[%clk 0:00:04]}  Bg6 {[%clk 0:00:57]} 69. Bc7 {[%clk 0:00:04]}  Bf7 {[%clk 0:00:57]} 70. Kg2 {[%clk 0:00:04]}  Bg6 {[%clk 0:00:57]} 71. Kh3 {[%clk 0:00:05]}  Bf7 {[%clk 0:00:56]} 72. Kh4 {[%clk 0:00:05]}  Bg6 {[%clk 0:00:57]} 73. Kg5 {[%clk 0:00:05]}  Bf7 {[%clk 0:00:57]} 74. Bb8 {[%clk 0:00:05]}  Bg6 {[%clk 0:00:57]} 75. Ba7 {[%clk 0:00:04]}  Be8 {[%clk 0:00:57]} 76. Bf2 {[%clk 0:00:05]}  Bc6 {[%clk 0:00:56]} 77. Be1 {[%clk 0:00:05]}  Be8 {[%clk 0:00:56]} 78. Bd2 {[%clk 0:00:05]}  Bg6 {[%clk 0:00:54]} 79. Bxf4 {[%clk 0:00:05]}  exf4 {[%clk 0:00:55]} 80. Kxf4 {[%clk 0:00:05]}  Be8 {[%clk 0:00:55]} 81. Ke3 {[%clk 0:00:04]}  Kf6 {[%clk 0:00:32]} 82. f4 {[%clk 0:00:04]}  Kg6 {[%clk 0:00:33]} 83. g5 {[%clk 0:00:05]}  Kh5 {[%clk 0:00:32]} 84. Kd4 {[%clk 0:00:04]}  Kg4 {[%clk 0:00:33]} 85. Ke5 {[%clk 0:00:05]}  Bh5 {[%clk 0:00:29]} 86. Kf6 {[%clk 0:00:01]}  Kxf4 {[%clk 0:00:29]} 87. e5 {[%clk 0:00:01]}  Ke4 {[%clk 0:00:17]} 88. e6 {[%clk 0:00:01]}  Kd3 {[%clk 0:00:18]} 0-1


[Site "https://www.chess.com"]

[Event "Titled Tuesday Blitz April 05 Early 2022"]
[White "Kaminski, Victor"]
[Black "Prado Lobo, Jonas"]
[WhiteFideId "1131630"]
[BlackFideId "32050666"]
[WhiteElo "2181"]
[BlackElo "2214"]
[Result "0-1"]
[Round "11"]
[TimeControl "180+1"]
[Date "2022.04.05"]
[WhiteClock "0:00:26"]
[BlackClock "0:00:31"]

1. e4 {[%clk 0:03:00]}  e5 {[%clk 0:02:59]} 2. Nf3 {[%clk 0:03:00]}  Nf6 {[%clk 0:03:00]} 3. Nc3 {[%clk 0:03:00]}  Nc6 {[%clk 0:02:59]} 4. Bb5 {[%clk 0:02:58]}  Nd4 {[%clk 0:02:59]} 5. Bc4 {[%clk 0:02:55]}  d6 {[%clk 0:02:59]} 6. h3 {[%clk 0:02:54]}  Be7 {[%clk 0:02:53]} 7. O-O {[%clk 0:02:53]}  O-O {[%clk 0:02:53]} 8. d3 {[%clk 0:02:53]}  Nxf3+ {[%clk 0:02:45]} 9. Qxf3 {[%clk 0:02:53]}  Be6 {[%clk 0:02:46]} 10. Bg5 {[%clk 0:02:48]}  c6 {[%clk 0:02:42]} 11. Rad1 {[%clk 0:02:38]}  h6 {[%clk 0:02:31]} 12. Bc1 {[%clk 0:02:35]}  d5 {[%clk 0:02:26]} 13. Bb3 {[%clk 0:02:29]}  d4 {[%clk 0:02:20]} 14. Ne2 {[%clk 0:02:26]}  Bxb3 {[%clk 0:02:14]} 15. axb3 {[%clk 0:02:25]}  Ne8 {[%clk 0:02:15]} 16. Qg3 {[%clk 0:02:23]}  Qc7 {[%clk 0:02:02]} 17. Bxh6 {[%clk 0:02:20]}  f5 {[%clk 0:01:54]} 18. exf5 {[%clk 0:02:17]}  Rxf5 {[%clk 0:01:55]} 19. Qg4 {[%clk 0:02:15]}  Rf6 {[%clk 0:01:46]} 20. Bd2 {[%clk 0:02:12]}  Nd6 {[%clk 0:01:41]} 21. Ng3 {[%clk 0:02:10]}  Rf7 {[%clk 0:01:18]} 22. Rde1 {[%clk 0:02:07]}  Ne8 {[%clk 0:01:12]} 23. f4 {[%clk 0:01:57]}  exf4 {[%clk 0:01:00]} 24. Bxf4 {[%clk 0:01:55]}  Bd6 {[%clk 0:01:00]} 25. Bxd6 {[%clk 0:01:46]}  Nxd6 {[%clk 0:00:56]} 26. Rxf7 {[%clk 0:01:37]}  Nxf7 {[%clk 0:00:52]} 27. Nf5 {[%clk 0:01:28]}  Ne5 {[%clk 0:00:44]} 28. Nh6+ {[%clk 0:01:14]}  Kh7 {[%clk 0:00:40]} 29. Qf5+ {[%clk 0:01:10]}  Ng6 {[%clk 0:00:40]} 30. Nf7 {[%clk 0:01:04]}  Rf8 {[%clk 0:00:30]} 31. Ng5+ {[%clk 0:00:59]}  Kh6 {[%clk 0:00:30]} 32. Qg4 {[%clk 0:00:40]}  Rf4 {[%clk 0:00:30]} 33. Qg3 {[%clk 0:00:30]}  Rf1+ {[%clk 0:00:30]} 34. Kh2 {[%clk 0:00:26]}  Qxg3+ {[%clk 0:00:31]} 0-1


[Site "https://www.chess.com"]

[Event "Titled Tuesday Blitz April 05 Early 2022"]
[White "Kostina, Nadezhda"]
[Black "Baker, Chris W"]
[WhiteFideId "4195876"]
[BlackFideId "401676"]
[WhiteElo "1982"]
[BlackElo "2144"]
[Result "1-0"]
[Round "11"]
[TimeControl "180+1"]
[Date "2022.04.05"]
[WhiteClock "0:00:05"]
[BlackClock "0:00:03"]

1. e4 {[%clk 0:03:00]}  e5 {[%clk 0:02:58]} 2. Nf3 {[%clk 0:03:00]}  Nc6 {[%clk 0:02:58]} 3. Bc4 {[%clk 0:02:58]}  Bc5 {[%clk 0:02:57]} 4. d3 {[%clk 0:02:57]}  Nf6 {[%clk 0:02:54]} 5. c3 {[%clk 0:02:53]}  d6 {[%clk 0:02:51]} 6. a4 {[%clk 0:02:52]}  a5 {[%clk 0:02:46]} 7. h3 {[%clk 0:02:45]}  h6 {[%clk 0:02:42]} 8. O-O {[%clk 0:02:44]}  O-O {[%clk 0:02:39]} 9. Be3 {[%clk 0:02:41]}  Bxe3 {[%clk 0:02:33]} 10. fxe3 {[%clk 0:02:40]}  Qe7 {[%clk 0:02:29]} 11. Nbd2 {[%clk 0:02:36]}  Be6 {[%clk 0:02:26]} 12. Qe1 {[%clk 0:02:21]}  Bxc4 {[%clk 0:02:22]} 13. Nxc4 {[%clk 0:02:19]}  d5 {[%clk 0:02:21]} 14. exd5 {[%clk 0:02:17]}  Nxd5 {[%clk 0:02:21]} 15. Qg3 {[%clk 0:02:13]}  Rae8 {[%clk 0:02:10]} 16. Nh4 {[%clk 0:02:11]}  Qg5 {[%clk 0:02:03]} 17. Qxg5 {[%clk 0:01:01]}  hxg5 {[%clk 0:02:02]} 18. Nf5 {[%clk 0:01:01]}  g6 {[%clk 0:01:53]} 19. Ng3 {[%clk 0:01:01]}  f5 {[%clk 0:01:46]} 20. Rae1 {[%clk 0:00:54]}  Kg7 {[%clk 0:01:39]} 21. Ne2 {[%clk 0:00:45]}  Rd8 {[%clk 0:01:32]} 22. Rd1 {[%clk 0:00:35]}  Nf6 {[%clk 0:01:18]} 23. d4 {[%clk 0:00:29]}  e4 {[%clk 0:01:14]} 24. Rd2 {[%clk 0:00:21]}  Nd5 {[%clk 0:01:08]} 25. Rfd1 {[%clk 0:00:20]}  f4 {[%clk 0:01:05]} 26. exf4 {[%clk 0:00:17]}  gxf4 {[%clk 0:01:05]} 27. Rf1 {[%clk 0:00:16]}  g5 {[%clk 0:00:53]} 28. Rdd1 {[%clk 0:00:15]}  Kg6 {[%clk 0:00:37]} 29. Kh2 {[%clk 0:00:14]}  Rf7 {[%clk 0:00:31]} 30. Rfe1 {[%clk 0:00:13]}  Re7 {[%clk 0:00:29]} 31. Ng1 {[%clk 0:00:14]}  Kf5 {[%clk 0:00:27]} 32. Ne5 {[%clk 0:00:13]}  Nxe5 {[%clk 0:00:25]} 33. dxe5 {[%clk 0:00:13]}  c6 {[%clk 0:00:24]} 34. c4 {[%clk 0:00:13]}  Rxe5 {[%clk 0:00:22]} 35. cxd5 {[%clk 0:00:13]}  Rexd5 {[%clk 0:00:22]} 36. Rc1 {[%clk 0:00:11]}  Rd2 {[%clk 0:00:21]} 37. Rc5+ {[%clk 0:00:09]}  Kg6 {[%clk 0:00:19]} 38. Rxe4 {[%clk 0:00:08]}  Rxb2 {[%clk 0:00:18]} 39. Ree5 {[%clk 0:00:07]}  Rd5 {[%clk 0:00:12]} 40. Rexd5 {[%clk 0:00:05]}  cxd5 {[%clk 0:00:12]} 41. Rxd5 {[%clk 0:00:05]}  Rb4 {[%clk 0:00:12]} 42. Rxa5 {[%clk 0:00:04]}  b6 {[%clk 0:00:11]} 43. Rb5 {[%clk 0:00:04]}  Rxa4 {[%clk 0:00:10]} 44. Rxb6+ {[%clk 0:00:03]}  Kh5 {[%clk 0:00:11]} 45. Rb5 {[%clk 0:00:04]}  Ra8 {[%clk 0:00:05]} 46. Nf3 {[%clk 0:00:04]}  Rg8 {[%clk 0:00:05]} 47. h4 {[%clk 0:00:03]}  Kg4 {[%clk 0:00:03]} 48. Rxg5+ {[%clk 0:00:04]}  Rxg5 {[%clk 0:00:03]} 49. hxg5 {[%clk 0:00:04]}  Kf5 {[%clk 0:00:03]} 50. Kh3 {[%clk 0:00:05]}  Kg6 {[%clk 0:00:03]} 51. Kg4 {[%clk 0:00:05]} 1-0


[Site "https://www.chess.com"]

[Event "Titled Tuesday Blitz April 05 Early 2022"]
[White "Kozak, Antoni"]
[Black "Brodowski, Piotr"]
[WhiteFideId "21832030"]
[BlackFideId "1124480"]
[WhiteElo "2236"]
[BlackElo "2422"]
[Result "0-1"]
[Round "11"]
[TimeControl "180+1"]
[Date "2022.04.05"]
[WhiteClock "0:00:02"]
[BlackClock "0:00:07"]

1. e4 {[%clk 0:02:54]}  c5 {[%clk 0:02:59]} 2. Nf3 {[%clk 0:02:52]}  e6 {[%clk 0:02:59]} 3. c3 {[%clk 0:02:47]}  Nf6 {[%clk 0:02:55]} 4. Bd3 {[%clk 0:02:44]}  Nc6 {[%clk 0:02:41]} 5. Bc2 {[%clk 0:02:41]}  g5 {[%clk 0:02:38]} 6. h3 {[%clk 0:02:20]}  g4 {[%clk 0:02:37]} 7. hxg4 {[%clk 0:02:19]}  Nxg4 {[%clk 0:02:38]} 8. d3 {[%clk 0:01:55]}  Bg7 {[%clk 0:02:32]} 9. Bf4 {[%clk 0:01:51]}  d5 {[%clk 0:02:29]} 10. Nbd2 {[%clk 0:01:47]}  e5 {[%clk 0:02:12]} 11. Bg3 {[%clk 0:01:45]}  Be6 {[%clk 0:02:11]} 12. Qe2 {[%clk 0:01:36]}  h5 {[%clk 0:02:10]} 13. Bb3 {[%clk 0:01:26]}  c4 {[%clk 0:01:26]} 14. exd5 {[%clk 0:01:11]}  cxb3 {[%clk 0:00:42]} 15. dxe6 {[%clk 0:01:10]}  f5 {[%clk 0:00:42]} 16. axb3 {[%clk 0:00:53]}  Qd6 {[%clk 0:00:38]} 17. Ng5 {[%clk 0:00:43]}  O-O-O {[%clk 0:00:35]} 18. Nf7 {[%clk 0:00:30]}  Qxe6 {[%clk 0:00:36]} 19. Nxh8 {[%clk 0:00:26]}  Rxh8 {[%clk 0:00:34]} 20. Nc4 {[%clk 0:00:19]}  h4 {[%clk 0:00:26]} 21. Rxh4 {[%clk 0:00:18]}  Rxh4 {[%clk 0:00:26]} 22. Bxh4 {[%clk 0:00:19]}  e4 {[%clk 0:00:26]} 23. f3 {[%clk 0:00:17]}  Qh6 {[%clk 0:00:26]} 24. g3 {[%clk 0:00:16]}  Nge5 {[%clk 0:00:19]} 25. fxe4 {[%clk 0:00:14]}  f4 {[%clk 0:00:17]} 26. Nxe5 {[%clk 0:00:12]}  Nxe5 {[%clk 0:00:16]} 27. d4 {[%clk 0:00:11]}  f3 {[%clk 0:00:16]} 28. Qf2 {[%clk 0:00:11]}  Nd3+ {[%clk 0:00:16]} 29. Kf1 {[%clk 0:00:10]}  Nxf2 {[%clk 0:00:16]} 30. Kxf2 {[%clk 0:00:10]}  Qd2+ {[%clk 0:00:17]} 31. Kxf3 {[%clk 0:00:11]}  Qxb2 {[%clk 0:00:17]} 32. Rxa7 {[%clk 0:00:06]}  Qxc3+ {[%clk 0:00:17]} 33. Kg4 {[%clk 0:00:06]}  Bxd4 {[%clk 0:00:16]} 34. Ra8+ {[%clk 0:00:06]}  Kd7 {[%clk 0:00:17]} 35. Rd8+ {[%clk 0:00:06]}  Ke6 {[%clk 0:00:13]} 36. Re8+ {[%clk 0:00:06]}  Kd7 {[%clk 0:00:12]} 37. Rd8+ {[%clk 0:00:05]}  Kc7 {[%clk 0:00:12]} 38. Rd5 {[%clk 0:00:05]}  Qe3 {[%clk 0:00:10]} 39. Bg5 {[%clk 0:00:04]}  Qxe4+ {[%clk 0:00:10]} 40. Bf4+ {[%clk 0:00:05]}  Kc6 {[%clk 0:00:10]} 41. Rd6+ {[%clk 0:00:06]}  Kc5 {[%clk 0:00:10]} 42. Rd8 {[%clk 0:00:03]}  b5 {[%clk 0:00:10]} 43. Rc8+ {[%clk 0:00:03]}  Kb4 {[%clk 0:00:10]} 44. Rb8 {[%clk 0:00:03]}  Qe6+ {[%clk 0:00:08]} 45. Kf3 {[%clk 0:00:03]}  Qc6+ {[%clk 0:00:08]} 46. Kg4 {[%clk 0:00:01]}  Kxb3 {[%clk 0:00:08]} 47. Kf5 {[%clk 0:00:01]}  Ba7 {[%clk 0:00:06]} 48. g4 {[%clk 0:00:01]}  Bxb8 {[%clk 0:00:06]} 49. Bxb8 {[%clk 0:00:01]}  Qc8+ {[%clk 0:00:06]} 50. Kf6 {[%clk 0:00:01]}  Qxb8 {[%clk 0:00:07]} 51. g5 {[%clk 0:00:02]}  Kc2 {[%clk 0:00:07]} 0-1


[Site "https://www.chess.com"]

[Event "Titled Tuesday Blitz April 05 Early 2022"]
[White "Manolache, Marius"]
[Black "Marcziter, Dmitrii"]
[WhiteFideId "1201530"]
[BlackFideId "13900765"]
[WhiteElo "2364"]
[BlackElo "2155"]
[Result "1-0"]
[Round "11"]
[TimeControl "180+1"]
[Date "2022.04.05"]
[WhiteClock "0:00:52"]
[BlackClock "0:00:04"]

1. d4 {[%clk 0:02:59]}  Nf6 {[%clk 0:02:58]} 2. c4 {[%clk 0:02:59]}  g6 {[%clk 0:02:59]} 3. Qc2 {[%clk 0:02:59]}  Bg7 {[%clk 0:02:59]} 4. e4 {[%clk 0:02:59]}  d6 {[%clk 0:03:00]} 5. Nf3 {[%clk 0:02:58]}  O-O {[%clk 0:02:59]} 6. Be2 {[%clk 0:02:58]}  c5 {[%clk 0:02:59]} 7. d5 {[%clk 0:02:58]}  e6 {[%clk 0:02:59]} 8. h3 {[%clk 0:02:57]}  exd5 {[%clk 0:02:58]} 9. cxd5 {[%clk 0:02:57]}  Re8 {[%clk 0:02:56]} 10. Nfd2 {[%clk 0:02:56]}  a6 {[%clk 0:02:42]} 11. a4 {[%clk 0:02:55]}  Nbd7 {[%clk 0:02:40]} 12. O-O {[%clk 0:02:54]}  Nxd5 {[%clk 0:02:37]} 13. exd5 {[%clk 0:02:51]}  Rxe2 {[%clk 0:02:36]} 14. Nc3 {[%clk 0:02:51]}  Re8 {[%clk 0:02:35]} 15. a5 {[%clk 0:02:50]}  Rb8 {[%clk 0:02:33]} 16. Nc4 {[%clk 0:02:49]}  Ne5 {[%clk 0:02:31]} 17. Nb6 {[%clk 0:02:49]}  Bf5 {[%clk 0:02:30]} 18. Qd1 {[%clk 0:02:46]}  Nd7 {[%clk 0:02:18]} 19. Nca4 {[%clk 0:02:43]}  Ne5 {[%clk 0:02:15]} 20. Ra3 {[%clk 0:02:39]}  c4 {[%clk 0:02:10]} 21. Be3 {[%clk 0:02:33]}  Bd3 {[%clk 0:02:07]} 22. Re1 {[%clk 0:02:33]}  Nd7 {[%clk 0:02:01]} 23. Qd2 {[%clk 0:02:25]}  Nxb6 {[%clk 0:01:57]} 24. Nxb6 {[%clk 0:02:24]}  Qf6 {[%clk 0:01:56]} 25. Rc3 {[%clk 0:02:20]}  Rbd8 {[%clk 0:01:52]} 26. Nxc4 {[%clk 0:02:15]}  Bxc4 {[%clk 0:01:43]} 27. Rxc4 {[%clk 0:02:15]}  Rc8 {[%clk 0:01:43]} 28. b3 {[%clk 0:02:10]}  Qf5 {[%clk 0:01:33]} 29. Rec1 {[%clk 0:02:05]}  Rxc4 {[%clk 0:01:30]} 30. bxc4 {[%clk 0:02:05]}  Rc8 {[%clk 0:01:22]} 31. Qc2 {[%clk 0:01:56]}  Qe5 {[%clk 0:01:18]} 32. Qd3 {[%clk 0:01:52]}  f5 {[%clk 0:01:16]} 33. g3 {[%clk 0:01:51]}  h6 {[%clk 0:01:15]} 34. h4 {[%clk 0:01:50]}  Kh7 {[%clk 0:01:13]} 35. Bf4 {[%clk 0:01:47]}  Qf6 {[%clk 0:01:12]} 36. Rb1 {[%clk 0:01:46]}  Rc7 {[%clk 0:01:11]} 37. Rb6 {[%clk 0:01:44]}  Bf8 {[%clk 0:01:09]} 38. Be3 {[%clk 0:01:35]}  g5 {[%clk 0:00:52]} 39. hxg5 {[%clk 0:01:32]}  hxg5 {[%clk 0:00:52]} 40. g4 {[%clk 0:01:30]}  Kg8 {[%clk 0:00:46]} 41. Bd4 {[%clk 0:01:27]}  Qg6 {[%clk 0:00:42]} 42. c5 {[%clk 0:01:23]}  Re7 {[%clk 0:00:38]} 43. Be3 {[%clk 0:01:12]}  Qf6 {[%clk 0:00:27]} 44. gxf5 {[%clk 0:01:10]}  Qa1+ {[%clk 0:00:24]} 45. Qf1 {[%clk 0:01:09]}  Qe5 {[%clk 0:00:20]} 46. Rxd6 {[%clk 0:01:06]}  Rh7 {[%clk 0:00:20]} 47. Rg6+ {[%clk 0:01:06]}  Kf7 {[%clk 0:00:19]} 48. Qc4 {[%clk 0:00:57]}  Qa1+ {[%clk 0:00:15]} 49. Bc1 {[%clk 0:00:54]}  Qe5 {[%clk 0:00:06]} 50. d6+ {[%clk 0:00:52]}  Ke8 {[%clk 0:00:04]} 51. Re6+ {[%clk 0:00:52]} 1-0


[Site "https://www.chess.com"]